bitfinex-derivatives/quotes_SOLF0:USTF0_20250817
["timestamp","ask_amount","ask_price","bid_price","bid_amount"]
[1755398203747,3.02,189.39,189.32,2.81]
[1755398208561,3.06,189.41,189.32,2.81]
[1755398209955,3.06,189.41,189.32,4.77067838]
[1755398210156,3.06,189.41,189.33,3.05]
[1755398213864,1.96067838,189.39,189.27,1.96067838]
[1755398214060,3.06,189.38,189.28,3.05]
[1755398215069,3.06,189.38,189.29,3.05]
[1755398215365,3.06,189.38,189.3,1.96067838]
[1755398215565,3.06,189.38,189.34,3.05]
[1755398218268,356.36067838,189.45,189.34,3.05]
[1755398218269,3.06,189.37,189.34,3.05]
[1755398218464,3.06,189.36,189.3,1.96067838]
[1755398218669,3.06,189.41,189.31,3.05]
[1755398221870,3.06,189.43,189.37,3.05]
[1755398222072,3.06,189.42,189.39,3.05]
[1755398222368,3.06,189.47,189.42,3.05]
[1755398222571,3.06,189.49,189.42,3.05]
[1755398224768,3.06,189.47,189.39,3.05]
[1755398225070,1.96067838,189.42,189.36,3.05]
[1755398225268,3.06,189.41,189.31,3.05]
[1755398226465,3.06,189.41,189.32,1.96067838]
[1755398226767,5.94478674,189.48,189.27,130.24]
[1755398226768,3.06,189.43,189.36,3.05]
[1755398228376,1.96067838,189.51,189.38,1.96067838]
[1755398228575,3.06,189.49,189.39,3.05]
[1755398228769,3.06,189.47,189.39,3.05]
[1755398228966,3.06,189.45,189.39,3.05]
[1755398229472,3.06,189.5,189.39,3.05]
[1755398229774,3.06,189.48,189.39,3.05]
[1755398229972,1.96067838,189.51,189.39,3.05]
[1755398229973,3.06,189.46,189.39,3.05]
[1755398231072,3.06,189.48,189.42,3.05]
[1755398231375,3.06,189.5,189.42,3.05]
[1755398231579,3.89569141,189.49,189.42,3.05]
[1755398231775,3.06,189.5,189.42,3.05]
[1755398231971,3.89567276,189.49,189.42,3.05]
[1755398232175,3.06,189.49,189.42,3.05]
[1755398232474,3.06,189.46,189.42,3.05]
[1755398233077,1.96067838,189.51,189.42,3.05]
[1755398233379,3.06,189.49,189.42,3.05]
[1755398233578,3.89823112,189.48,189.42,3.05]
[1755398233774,1.96067838,189.51,189.42,3.05]
[1755398233775,3.06,189.46,189.42,3.05]
[1755398233972,3.06,189.5,189.43,3.05]
[1755398234272,3.90021936,189.49,189.43,3.05]
[1755398234483,3.06,189.49,189.43,3.05]
[1755398235171,3.90434772,189.48,189.43,3.05]
[1755398235476,3.06,189.47,189.43,3.05]
[1755398235878,3.06,189.53,189.44,1.96067838]
[1755398236180,3.90464122,189.52,189.45,3.05]
[1755398236472,3.90464122,189.51,189.48,3.05]
[1755398236681,3.06,189.58,189.51,3.05]
[1755398236880,3.90577935,189.57,189.51,3.05]
[1755398237075,3.90577935,189.56,189.51,3.05]
[1755398237278,3.90577935,189.55,189.51,3.05]
[1755398237477,3.90577935,189.54,189.51,3.05]
[1755398237684,5.94478674,189.61,189.51,3.05]
[1755398237985,2.98,189.59,189.51,3.05]
[1755398238181,2.98,189.57,189.51,3.05]
[1755398238380,2.98,189.55,189.52,2.87]
[1755398238580,3.90750682,189.54,189.53,2.87]
[1755398238782,2.98,189.53,189.51,2.87]
[1755398238972,5.94478674,189.59,189.45,5.2749]
[1755398238973,2.98,189.52,189.45,5.2749]
[1755398239174,12.24884916,189.62,189.46,2.87]
[1755398239175,3.91340611,189.51,189.46,2.87]
[1755398239373,2.98,189.56,189.46,2.87]
[1755398239581,6.89287676,189.55,189.46,2.87]
[1755398239880,6.89287676,189.54,189.47,2.87]
[1755398240178,3.91287676,189.53,189.47,2.87]
[1755398240982,2.98,189.57,189.47,2.87]
[1755398241180,3.91458747,189.56,189.47,2.87]
[1755398241375,3.91458747,189.55,189.47,6.20166905]
[1755398241574,3.91458747,189.54,189.49,5.2741]
[1755398241781,2.98,189.56,189.5,2.87]
[1755398241978,3.9161315,189.55,189.5,2.87]
[1755398242186,6.8961315,189.54,189.5,2.87]
[1755398242379,3.9161315,189.53,189.5,2.87]
[1755398242979,2.98,189.56,189.5,2.87]
[1755398243181,3.91692923,189.55,189.5,2.87]
[1755398243381,2.98,189.56,189.5,2.87]
[1755398243583,3.91544864,189.55,189.5,2.87]
[1755398243780,2.98,189.58,189.51,2.87]
[1755398243982,3.91530571,189.57,189.51,2.87]
[1755398244182,3.91530571,189.56,189.51,2.87]
[1755398244378,3.91530571,189.55,189.51,2.87]
[1755398244576,2.98,189.58,189.51,44.87]
[1755398244781,3.91368067,189.57,189.52,2.87]
[1755398244981,2.98,189.6,189.52,2.87]
[1755398245183,3.91348807,189.59,189.52,42.0]
[1755398245382,2.98,189.6,189.54,2.87]
[1755398245584,3.91010104,189.59,189.54,2.87]
[1755398245885,2.98,189.61,189.55,2.87]
[1755398246083,6.89010104,189.6,189.55,2.87]
[1755398246386,6.89010104,189.59,189.55,2.87]
[1755398246590,2.98,189.59,189.55,2.87]
[1755398249191,0.91821792,189.64,189.52,47.2732]
[1755398249385,3.90392626,189.63,189.53,2.87]
[1755398249590,0.91821792,189.64,189.53,2.87]
[1755398249591,2.98,189.61,189.53,2.87]
[1755398256292,2.98,189.63,189.54,2.87]
[1755398256999,2.98,189.63,189.57,5.2718]
[1755398257203,2.98,189.63,189.58,2.87]
[1755398257500,2.98,189.63,189.59,2.87]
[1755398257702,2.98,189.63,189.6,2.87]
[1755398258096,2.98,189.63,189.54,2.87]
[1755398258297,2.98,189.63,189.55,2.87]
[1755398259199,3.89957111,189.62,189.55,2.87]
[1755398259408,2.98,189.61,189.55,2.87]
[1755398260797,355.57801203,189.67,189.56,4.83289821]
[1755398261002,2.98,189.63,189.57,2.87]
[1755398261404,2.98,189.63,189.57,8.1416]
[1755398261604,355.57801203,189.67,189.58,2.87]
[1755398261909,2.98,189.62,189.58,2.87]
[1755398262106,2.98,189.66,189.59,1.96289821]
[1755398262298,6.88002803,189.65,189.6,2.87]
[1755398262504,2.98,189.67,189.6,2.87]
[1755398262702,2.98,189.67,189.6,5.2708]
[1755398262906,2.98,189.67,189.61,2.87]
[1755398263504,2.98,189.67,189.62,2.87]
[1755398263909,2.98,189.66,189.62,2.87]
[1755398264910,2.98,189.65,189.62,2.87]
[1755398266007,131.13774572,189.72,189.59,1.96289821]
[1755398266208,5.86235894,189.71,189.6,2.87]
[1755398266503,2.98,189.69,189.6,2.87]
[1755398266708,2.98,189.67,189.61,2.87]
[1755398266910,6.87946073,189.66,189.61,2.87]
[1755398267108,2.98,189.65,189.61,2.87]
[1755398267510,3.0,189.64,189.61,2.87]
[1755398268309,3.0,189.71,189.63,2.89]
[1755398268504,356.34289821,189.77,189.66,2.89]
[1755398268505,6.89973514,189.7,189.66,2.89]
[1755398268710,492.46768495,189.77,189.66,2.89]
[1755398268909,3.89926076,189.76,189.66,2.89]
[1755398269107,3.0,189.74,189.66,8.1593]
[1755398269311,3.89926076,189.73,189.66,2.89]
[1755398269512,3.0,189.71,189.66,2.89]
[1755398270512,3.89982839,189.7,189.66,2.89]
[1755398270713,3.0,189.71,189.66,2.89]
[1755398270915,3.89982839,189.7,189.66,2.89]
[1755398271213,3.0,189.7,189.66,2.89]
[1755398272420,3.90394126,189.69,189.66,2.89]
[1755398272715,3.0,189.7,189.66,2.89]
[1755398273414,3.89922546,189.69,189.66,2.89]
[1755398273611,3.0,189.7,189.66,2.89]
[1755398273806,3.89922546,189.69,189.66,2.89]
[1755398274008,3.0,189.7,189.66,2.89]
[1755398274406,3.90022074,189.69,189.66,2.89]
[1755398274605,3.0,189.69,189.66,2.89]
[1755398276621,3.0,189.75,189.65,1.96289821]
[1755398276820,3.0,189.73,189.63,44.89]
[1755398277013,3.0,189.71,189.64,2.89]
[1755398277214,3.0,189.69,189.64,2.89]
[1755398277414,3.0,189.67,189.64,2.89]
[1755398278012,3.0,189.73,189.63,2.89]
[1755398278217,3.0,189.71,189.64,2.89]
[1755398278519,5.94478674,189.75,189.63,42.0]
[1755398278520,3.9047794,189.7,189.66,2.89]
[1755398278720,3.0,189.68,189.66,2.89]
[1755398279220,3.0,189.7,189.66,2.89]
[1755398279422,6.90724936,189.69,189.66,2.89]
[1755398279722,3.90724936,189.68,189.66,2.89]
[1755398280824,3.90724936,189.68,189.65,2.89]
[1755398281014,3.0,189.67,189.65,2.89]
[1755398281214,3.0,189.65,189.53,114.31850499]
[1755398281421,3.0,189.63,189.61,2.89]
[1755398281618,3.0,189.63,189.59,2.89]
[1755398281823,3.91475334,189.62,189.59,2.89]
[1755398282117,3.0,189.65,189.62,2.89]
[1755398282322,3.91455974,189.64,189.63,2.89]
[1755398282924,6.91455974,189.64,189.63,2.89]
[1755398284227,3.91455974,189.64,189.63,2.89]
[1755398286528,6.91455974,189.64,189.63,2.89]
[1755398289334,3.0,189.64,189.63,2.89]
[1755398290129,6.92152586,189.64,189.63,2.89]
[1755398290531,3.0,189.64,189.63,2.89]
[1755398292333,1.96289821,189.71,189.63,2.89]
[1755398292631,3.0,189.69,189.64,1.96289821]
[1755398292835,3.92335803,189.68,189.65,2.89]
[1755398293036,5.94478674,189.75,189.65,5.2697]
[1755398293335,3.0,189.73,189.66,2.89]
[1755398293529,3.92263532,189.72,189.66,2.89]
[1755398293732,3.0,189.7,189.66,2.89]
[1755398293933,3.0,189.76,189.66,2.89]
[1755398294128,3.0,189.74,189.66,2.89]
[1755398294437,3.0,189.72,189.66,2.89]
[1755398294636,6.92275701,189.71,189.66,2.89]
[1755398294936,6.92275701,189.7,189.66,2.89]
[1755398295141,3.0,189.69,189.66,2.89]
[1755398296039,3.0,189.75,189.65,2.89]
[1755398296236,3.0,189.73,189.65,2.89]
[1755398296436,3.0,189.71,189.63,2.89]
[1755398296741,3.0,189.69,189.61,2.89]
[1755398297039,3.0,189.67,189.61,2.89]
[1755398297240,2.87,189.65,189.61,2.89]
[1755398297436,2.87,189.71,189.61,2.89]
[1755398297637,2.87,189.69,189.61,2.89]
[1755398297837,2.87,189.67,189.61,2.89]
[1755398298038,2.87,189.65,189.61,2.89]
[1755398298841,2.87,189.64,189.61,2.89]
[1755398300134,2.87,189.64,189.62,2.79]
[1755398300443,2.87,189.63,189.62,2.79]
[1755398301444,2.87,189.65,189.62,2.79]
[1755398301744,2.87,189.64,189.63,2.79]
[1755398302139,5.94478674,189.71,189.63,2.79]
[1755398302340,2.87,189.66,189.63,2.79]
[1755398302545,3.92977085,189.65,189.63,2.79]
[1755398303838,5.94478674,189.72,189.63,1.96289821]
[1755398304038,2.87,189.7,189.64,2.79]
[1755398304238,3.93023104,189.69,189.64,2.79]
[1755398304443,6.80023104,189.68,189.64,2.79]
[1755398304642,6.80023104,189.67,189.64,2.79]
[1755398304941,2.87,189.65,189.64,2.79]
[1755398305144,6.80023104,189.65,189.64,2.79]
[1755398305541,3.93023104,189.65,189.64,2.79]
[1755398305937,6.80023104,189.66,189.63,1.96289821]
[1755398306138,3.93023104,189.65,189.63,1.96289821]
[1755398306541,3.93023104,189.65,189.64,2.79]
[1755398308041,3.93023104,189.67,189.64,2.79]
[1755398308242,3.93023104,189.66,189.64,2.79]
[1755398308444,3.93023104,189.65,189.64,2.79]
[1755398308642,6.80023104,189.67,189.64,2.79]
[1755398308842,6.80023104,189.66,189.64,2.79]
[1755398309042,3.93023104,189.65,189.63,5.2702]
[1755398309238,6.80023104,189.65,189.62,7.23329821]
[1755398309439,2.87,189.65,189.62,7.23329821]
[1755398309646,2.87,189.65,189.63,2.79]
[1755398309844,2.87,189.7,189.63,2.79]
[1755398310044,2.87,189.68,189.63,2.79]
[1755398310348,2.87,189.66,189.63,2.79]
[1755398310548,3.9343641,189.65,189.63,2.79]
[1755398314947,6.8043641,189.65,189.63,2.79]
[1755398315152,2.87,189.65,189.63,2.79]
[1755398315346,3.93511232,189.64,189.63,2.79]
[1755398316855,3.93511232,189.64,189.53,43.96289821]
[1755398316856,2.87,189.63,189.6,2.79]
[1755398317051,2.87,189.62,189.61,2.79]
[1755398318148,2.87,189.64,189.61,2.79]
[1755398318352,3.93586971,189.63,189.61,2.79]
[1755398318551,5.94478674,189.7,189.61,2.79]
[1755398318753,2.87,189.64,189.61,2.79]
[1755398318952,3.93605485,189.63,189.61,2.79]
[1755398319152,2.87,189.64,189.61,2.79]
[1755398319353,3.93612485,189.63,189.61,2.79]
[1755398319653,2.87,189.64,189.61,2.79]
[1755398319854,3.93634055,189.63,189.61,2.79]
[1755398320054,2.87,189.64,189.61,2.79]
[1755398320353,6.80634055,189.63,189.61,2.79]
[1755398320552,2.87,189.63,189.61,2.79]
[1755398320748,2.87,189.69,189.61,2.79]
[1755398320953,2.87,189.67,189.61,2.79]
[1755398321154,2.87,189.65,189.6,2.79]
[1755398321355,2.87,189.63,189.6,2.79]
[1755398321849,3.93736057,189.62,189.59,2.79]
[1755398322053,2.87,189.65,189.62,2.79]
[1755398322248,3.9369169,189.64,189.62,2.79]
[1755398322449,2.87,189.65,189.62,2.79]
[1755398322749,3.93701272,189.64,189.61,1.96289821]
[1755398322962,2.87,189.68,189.63,1.96289821]
[1755398323257,6.80695846,189.67,189.64,2.79]
[1755398323453,3.93695846,189.66,189.64,2.79]
[1755398323757,3.93695846,189.65,189.64,2.79]
[1755398326760,6.80695846,189.65,189.64,2.79]
[1755398330260,3.93695846,189.65,189.64,2.79]
[1755398335069,6.76695846,189.65,189.64,2.79]
[1755398337881,6.76695846,189.65,189.64,5.2699]
[1755398338068,3.93695846,189.65,189.64,8.1199]
[1755398338267,3.93695846,189.65,189.64,2.85]
[1755398338475,6.76695846,189.65,189.64,2.85]
[1755398339375,3.93695846,189.65,189.64,2.85]
[1755398339574,3.93695846,189.65,189.64,8.1199]
[1755398339774,6.76695846,189.65,189.64,8.1199]
[1755398342974,5.94478674,189.72,189.63,1.96289821]
[1755398343175,2.83,189.7,189.68,2.85]
[1755398343381,5.94478674,189.74,189.68,2.85]
[1755398343382,2.83,189.74,189.68,2.85]
[1755398343574,2.83,189.75,189.71,5.2679]
[1755398343776,2.83,189.74,189.7,1.96289821]
[1755398343974,107.42067956,189.77,189.73,1.96289821]
[1755398344175,2.83,189.75,189.73,7.23029821]
[1755398344372,2.83,189.78,189.74,2.85]
[1755398344576,13.8524717,189.88,189.77,2.85]
[1755398344577,135.52478674,189.83,189.77,2.85]
[1755398344778,2.83,189.82,189.77,2.85]
[1755398344977,2.83,189.82,189.78,2.85]
[1755398346275,2.83,189.82,189.8,2.85]
[1755398346877,5.94478674,189.87,189.76,1.96289821]
[1755398347081,2.83,189.86,189.79,1.96289821]
[1755398347281,2.83,189.86,189.8,5.2655]
[1755398347480,2.83,189.86,189.81,2.85]
[1755398348379,2.83,189.86,189.82,2.85]
[1755398348582,1.96289821,189.91,189.82,2.85]
[1755398348881,2.83,189.84,189.82,2.85]
[1755398349081,3.74679071,189.9,189.81,2.85]
[1755398349275,2.83,189.89,189.81,2.85]
[1755398350781,2.83,189.89,189.82,2.85]
[1755398352179,2.83,189.89,189.77,2.85]
[1755398352381,2.83,189.87,189.77,2.85]
[1755398352576,2.83,189.86,189.77,2.85]
[1755398353886,1.96289821,189.85,189.76,2.85]
[1755398354088,2.83,189.84,189.76,2.85]
[1755398356493,2.83,189.84,189.77,2.85]
[1755398358494,2.83,189.84,189.78,2.89]
[1755398358694,2.84,189.89,189.79,2.89]
[1755398358893,2.84,189.87,189.79,2.89]
[1755398359991,2.84,189.87,189.82,2.89]
[1755398362098,2.84,189.87,189.79,2.89]
[1755398366197,3.84142705,189.86,189.79,2.89]
[1755398366396,2.84,189.85,189.79,2.89]
[1755398367500,2.84,189.85,189.7,171.54]
[1755398367707,3.84222055,189.84,189.76,2.89]
[1755398367910,2.84,189.83,189.76,2.89]
[1755398368307,2.84,189.89,189.81,1.96289821]
[1755398368606,6.68262659,189.88,189.82,2.89]
[1755398368908,2.84,189.88,189.82,2.89]
[1755398369304,2.84,189.88,189.83,2.89]
[1755398370306,2.84,189.87,189.83,2.89]
[1755398371204,3.75679071,189.9,189.84,2.89]
[1755398371410,2.84,189.9,189.84,2.89]
[1755398374208,3.84160958,189.89,189.84,2.89]
[1755398374505,2.84,189.88,189.84,2.89]
[1755398374809,2.84,189.87,189.84,2.89]
[1755398379616,2.84,189.89,189.84,2.89]
[1755398379817,2.84,189.88,189.84,2.89]
[1755398380007,2.84,189.87,189.84,2.89]
[1755398380209,2.84,189.93,189.84,2.89]
[1755398380413,2.84,189.91,189.84,2.89]
[1755398380613,2.84,189.89,189.84,2.89]
[1755398381310,3.84922874,189.88,189.81,2.89]
[1755398381616,6.68922874,189.87,189.81,2.89]
[1755398381816,2.84,189.93,189.83,2.89]
[1755398382118,2.84,189.91,189.83,2.89]
[1755398382420,2.84,189.89,189.83,2.89]
[1755398383217,3.85341935,189.88,189.83,8.1547]
[1755398383516,2.84,189.89,189.84,2.89]
[1755398383715,3.85341935,189.88,189.84,2.89]
[1755398383917,2.84,189.89,189.84,2.89]
[1755398384218,3.85341935,189.88,189.84,8.1544]
[1755398384419,2.84,189.89,189.85,2.89]
[1755398384622,3.8561484,189.88,189.85,2.89]
[1755398384917,2.84,189.89,189.85,2.89]
[1755398385121,3.8561484,189.88,189.85,2.89]
[1755398385418,2.84,189.89,189.85,2.89]
[1755398385617,3.85615595,189.88,189.85,2.89]
[1755398385814,2.84,189.89,189.85,2.89]
[1755398386015,3.85615595,189.88,189.85,2.89]
[1755398386214,2.84,189.89,189.85,2.89]
[1755398386416,3.85602415,189.88,189.85,2.89]
[1755398386615,2.84,189.89,189.85,2.89]
[1755398386818,3.85930004,189.88,189.85,2.89]
[1755398387022,2.84,189.89,189.85,8.1541]
[1755398387319,3.85930004,189.88,189.86,2.89]
[1755398387510,3.85930004,189.87,189.86,2.89]
[1755398387910,3.85930004,189.88,189.86,2.89]
[1755398388114,3.85930004,189.87,189.86,2.89]
[1755398388419,3.85930004,189.88,189.86,2.89]
[1755398388720,3.85930004,189.87,189.86,2.89]
[1755398388917,3.85930004,189.88,189.86,2.89]
[1755398389117,3.85930004,189.87,189.86,2.89]
[1755398389319,3.85930004,189.88,189.86,2.89]
[1755398389518,3.85930004,189.87,189.86,2.89]
[1755398389710,3.85930004,189.88,189.86,2.89]
[1755398389910,3.85930004,189.87,189.86,2.89]
[1755398390109,3.85930004,189.88,189.86,2.89]
[1755398390310,3.85930004,189.87,189.86,2.89]
[1755398390519,3.85930004,189.88,189.86,2.89]
[1755398390716,3.85930004,189.87,189.86,2.89]
[1755398391016,6.83930004,189.9,189.86,2.89]
[1755398391216,6.83930004,189.89,189.86,2.89]
[1755398391522,3.85930004,189.88,189.86,2.89]
[1755398391721,6.83930004,189.88,189.86,2.89]
[1755398391921,3.85930004,189.87,189.86,2.89]
[1755398392522,2.98,189.9,189.86,2.89]
[1755398392721,6.83930004,189.89,189.86,2.89]
[1755398392922,3.85930004,189.88,189.86,2.89]
[1755398396020,3.85930004,189.88,189.86,8.1538]
[1755398396223,5.94478674,189.96,189.87,3.07]
[1755398396524,2.98,189.94,189.87,3.07]
[1755398396724,6.8479764,189.93,189.87,3.07]
[1755398396924,2.98,189.91,189.87,3.07]
[1755398397116,3.8679764,189.9,189.87,3.07]
[1755398397427,2.98,189.91,189.87,3.07]
[1755398397623,3.86723998,189.9,189.87,3.07]
[1755398397821,2.98,189.91,189.87,3.07]
[1755398398020,3.86723998,189.9,189.87,3.07]
[1755398398322,2.98,189.91,189.88,3.07]
[1755398398522,3.86733737,189.9,189.88,3.07]
[1755398398723,2.98,189.91,189.88,3.07]
[1755398398926,3.86733737,189.9,189.88,3.07]
[1755398399119,2.98,189.91,189.88,3.07]
[1755398399418,3.86733737,189.9,189.88,5.2632]
[1755398399624,2.98,189.91,189.89,3.07]
[1755398399823,3.86774436,189.9,189.89,3.07]
[1755398400321,2.98,189.94,189.89,5.263]
[1755398400522,6.8481712,189.93,189.9,3.07]
[1755398400729,3.8681712,189.92,189.9,3.07]
[1755398400926,3.8681712,189.91,189.9,3.07]
[1755398401224,2.98,189.92,189.9,3.07]
[1755398402631,2.98,189.96,189.87,3.07]
[1755398402825,2.98,189.94,189.87,3.07]
[1755398403023,6.847451,189.93,189.87,3.07]
[1755398403222,3.867451,189.92,189.88,5.2631]
[1755398403426,2.98,189.92,189.89,3.07]
[1755398403629,2.98,189.96,189.89,3.07]
[1755398403824,3.86738276,189.95,189.89,8.333]
[1755398404023,2.98,189.93,189.9,3.07]
[1755398404217,2.98,189.92,189.9,3.07]
[1755398404423,129.4,189.97,189.87,3.07]
[1755398404623,2.98,189.91,189.87,3.07]
[1755398405230,2.98,189.91,189.88,5.2633]
[1755398405429,2.98,189.91,189.89,3.07]
[1755398405931,3.86697474,189.9,189.86,3.07]
[1755398406228,2.98,189.88,189.86,3.07]
[1755398406424,2.98,189.87,189.86,3.07]
[1755398406626,1.25251193,189.92,189.86,3.07]
[1755398406826,2.98,189.9,189.86,3.07]
[1755398407026,2.98,189.93,189.88,3.07]
[1755398407227,2.98,189.91,189.87,1.25251193]
[1755398407530,2.98,189.91,189.77,42.0]
[1755398407531,1.25251193,189.88,189.82,4.32251193]
[1755398407730,2.98,189.85,189.83,3.07]
[1755398408726,7.90223948,189.93,189.83,3.07]
[1755398408937,2.98,189.91,189.84,3.07]
[1755398409230,2.98,189.89,189.84,3.07]
[1755398409425,2.98,189.87,189.84,3.07]
[1755398409821,1.95745274,189.93,189.84,3.07]
[1755398410125,2.98,189.86,189.85,3.07]
[1755398411727,2.98,189.92,189.85,3.07]
[1755398412035,2.98,189.9,189.86,3.07]
[1755398412228,3.87028425,189.89,189.86,3.07]
[1755398412533,2.98,189.87,189.86,3.07]
[1755398412733,6.85028425,189.87,189.86,3.07]
[1755398421238,3.87028425,189.87,189.86,3.07]
[1755398421437,2.99,189.91,189.86,3.07]
[1755398421637,3.87028425,189.9,189.86,5.02745274]
[1755398421834,3.87028425,189.9,189.89,3.03]
[1755398422033,3.87028425,189.9,189.89,4.98745274]
[1755398422233,2.99,189.93,189.9,3.03]
[1755398422438,3.87388909,189.92,189.9,3.03]
[1755398422636,2.99,189.93,189.9,8.2926]
[1755398422637,3.87388909,189.91,189.9,8.2926]
[1755398423640,3.8637025,189.91,189.9,8.2926]
[1755398424339,2.99,189.94,189.91,3.03]
[1755398424537,3.86332125,189.93,189.92,3.03]
[1755398425244,3.86332125,189.93,189.92,8.2922]
[1755398426142,3.86332125,189.93,189.92,3.03]
[1755398427247,3.86332125,189.93,189.92,8.2922]
[1755398427540,3.86332125,189.93,189.92,3.03]
[1755398428140,2.99,189.95,189.92,3.03]
[1755398428445,3.86096013,189.94,189.92,3.03]
[1755398428743,2.99,189.95,189.92,3.03]
[1755398428942,3.86096013,189.94,189.92,3.03]
[1755398429142,2.99,189.94,189.92,3.03]
[1755398429645,2.99,189.96,189.92,8.2922]
[1755398429844,6.85048964,189.95,189.93,3.03]
[1755398430040,3.86048964,189.94,189.93,3.03]
[1755398430240,6.85048964,189.94,189.93,3.03]
[1755398432743,3.86048964,189.94,189.93,3.03]
[1755398433345,6.85048964,189.94,189.93,3.03]
[1755398434544,3.86048964,189.94,189.93,3.03]
[1755398435247,361.0012153,190.01,189.93,3.03]
[1755398435248,354.14,190.01,189.93,3.03]
[1755398435448,2.99,189.97,189.93,3.03]
[1755398435648,3.85843037,189.96,189.93,3.03]
[1755398435848,3.85843037,189.95,189.93,3.03]
[1755398436050,2.99,190.0,189.94,5.2616]
[1755398436250,2.99,189.98,189.96,3.03]
[1755398436450,6.84842938,189.97,189.96,3.03]
[1755398442350,3.85842938,189.97,189.96,3.03]
[1755398442948,2.99,189.99,189.96,1.25141485]
[1755398443149,2.99,189.99,189.98,1.25141485]
[1755398443456,6.84484666,189.99,189.98,4.28141485]
[1755398446854,2.99,189.99,189.98,4.28141485]
[1755398451690,2.82,190.0,189.98,4.28141485]
[1755398451872,2.82,190.0,189.99,3.04]
[1755398452169,130.49141485,190.04,189.98,6.51191485]
[1755398452366,2.82,190.02,190.0,1.25141485]
[1755398452971,2.82,190.02,190.01,3.04]
[1755398453366,6.66726498,190.02,190.01,3.04]
[1755398456278,6.66787043,190.02,190.01,3.04]
[1755398459174,2.82,190.01,190.0,4.29141485]
[1755398459470,6.66787043,190.01,190.0,4.29141485]
[1755398460374,6.66787043,190.01,189.98,5.2605]
[1755398460375,6.6693513,190.01,189.98,1.25141485]
[1755398460582,2.82,189.99,189.97,3.04]
[1755398460779,3.8500031,189.98,189.97,3.04]
[1755398460979,6.6700031,189.98,189.97,3.04]
[1755398463785,3.8500031,189.98,189.97,3.04]
[1755398463978,3.8500031,189.98,189.97,4.29141485]
[1755398464286,2.82,190.02,189.98,3.04]
[1755398464586,3.85411866,190.01,190.0,3.04]
[1755398464884,6.67411866,190.01,190.0,3.04]
[1755398467888,3.85411866,190.01,190.0,3.04]
[1755398468290,3.85411866,190.01,189.98,3.04]
[1755398468490,6.67411866,190.0,189.99,3.04]
[1755398470588,3.85411866,190.0,189.99,3.04]
[1755398470889,2.82,190.01,189.99,3.04]
[1755398471188,3.85411866,190.0,189.99,3.04]
[1755398473084,6.67411866,190.0,189.99,3.04]
[1755398478585,2.9,189.99,189.96,4.74444558]